bitfinex/quotes_SOLUSD_20250908
["timestamp","ask_amount","ask_price","bid_price","bid_amount"]
[1757335291782,0.06,214.41,214.4,75.85559401]
[1757335292590,0.06,214.41,214.4,80.51977311]
[1757335297276,0.06,214.41,214.4,80.54977311]
[1757335298677,0.06,214.41,214.4,81.26977311]
[1757335299477,0.06,214.41,214.4,83.13566232]
[1757335301508,0.06,214.41,214.4,83.60208023]
[1757335301880,0.06,214.41,214.4,83.13566232]
[1757335303307,0.06,214.41,214.4,46.87566232]
[1757335303497,0.06,214.41,214.4,82.41566232]
[1757335304199,0.06,214.41,214.4,83.13566232]
[1757335310503,0.06,214.41,214.4,83.60208023]
[1757335310994,0.06,214.41,214.4,83.11566232]
[1757335311418,0.06,214.41,214.4,83.58208023]
[1757335313118,0.06,214.41,214.4,83.11566232]
[1757335313305,0.01023478,214.41,214.4,83.11566232]
[1757335314918,0.01023478,214.41,214.4,83.58208023]
[1757335317815,0.01023478,214.41,214.4,83.11566232]
[1757335319833,0.01023478,214.41,214.4,46.87566232]
[1757335320012,0.01023478,214.41,214.4,83.11566232]
[1757335321937,0.01023478,214.41,214.4,83.58208023]
[1757335323335,0.06,214.42,214.41,13.59559401]
[1757335323508,0.06,214.42,214.41,14.31559401]
[1757335324125,0.06,214.42,214.41,16.18130917]
[1757335325641,0.06,214.42,214.41,20.84527073]
[1757335325836,0.06,214.42,214.41,20.12527073]
[1757335328346,0.06,214.42,214.41,20.80527073]
[1757335328943,0.06,214.42,214.41,20.12527073]
[1757335331153,0.06,214.42,214.41,15.46130917]
[1757335331446,0.76,214.42,214.41,75.81559401]
[1757335331653,0.06,214.42,214.41,80.47955557]
[1757335331857,0.76,214.42,214.41,75.81559401]
[1757335332029,0.06,214.42,214.41,75.81559401]
[1757335332717,0.06,214.42,214.41,80.47955557]
[1757335334324,0.06,214.42,214.41,81.15955557]
[1757335334539,0.06,214.44,214.43,39.59559401]
[1757335334738,0.06,214.44,214.43,75.81559401]
[1757335335941,0.06,214.44,214.43,77.68122214]
[1757335336450,0.06,214.44,214.43,82.34474869]
[1757335337425,0.06,214.44,214.43,83.02474869]
[1757335344535,0.02016855,214.45,214.43,83.02474869]
[1757335345053,0.02016855,214.45,214.43,81.15912056]
[1757335345348,0.02016855,214.45,214.44,1.86545412]
[1757335345555,0.02016855,214.45,214.44,2.54545412]
[1757335346237,0.02016855,214.45,214.44,7.2087632]
[1757335346453,0.02016855,214.45,214.44,6.5287632]
[1757335346757,0.02016855,214.45,214.44,7.2087632]
[1757335350058,0.02016855,214.45,214.44,2.54545412]
[1757335350262,0.02016855,214.45,214.44,7.2087632]
[1757335350853,0.02016855,214.45,214.44,2.54545412]
[1757335351359,0.02016855,214.45,214.44,7.2087632]
[1757335352070,0.02016855,214.45,214.44,20.80435721]
[1757335352440,0.00016855,214.45,214.44,20.80435721]
[1757335354474,0.02040378,214.47,214.45,13.59559401]
[1757335354864,0.72040378,214.47,214.46,49.79559401]
[1757335355068,0.02040378,214.47,214.46,49.79559401]
[1757335355380,0.02040378,214.47,214.46,51.66104814]
[1757335356480,0.71040378,214.47,214.46,38.06545413]
[1757335356660,0.71040378,214.47,214.46,36.2]
[1757335356864,0.02040378,214.47,214.46,36.2]
[1757335357057,0.71040378,214.47,214.46,36.2]
[1757335357285,0.71040378,214.47,214.46,36.18]
[1757335357470,0.71040378,214.47,214.45,20.12419347]
[1757335357670,0.71040378,214.47,214.46,36.18]
[1757335357866,0.02040378,214.47,214.46,36.18]
[1757335358389,0.71040378,214.47,214.46,36.18]
[1757335358680,5.37306056,214.47,214.46,36.18]
[1757335359372,0.71040378,214.47,214.46,36.18]
[1757335359584,0.02040378,214.47,214.46,36.18]
[1757335360179,0.71040378,214.47,214.46,36.18]
[1757335360987,0.02040378,214.47,214.46,36.18]
[1757335361760,0.02040378,214.47,214.46,40.84287419]
[1757335361955,0.02040378,214.47,214.46,55.1184682]
[1757335364110,0.02040378,214.47,214.46,54.4384682]
[1757335365978,0.02040378,214.47,214.46,55.1184682]
[1757335366386,0.02040378,214.47,214.46,56.98392232]
[1757335371289,0.02040378,214.47,214.46,56.30392232]
[1757335371490,0.71040378,214.47,214.46,1.86545412]
[1757335371700,0.71040378,214.47,214.46,36.16]
[1757335372682,0.02040378,214.47,214.46,36.16]
[1757335373894,0.02040378,214.47,214.46,54.4184682]
[1757335374387,0.02040378,214.47,214.46,56.28392233]
[1757335378501,0.02040378,214.47,214.46,56.96392233]
[1757335379112,0.02040378,214.47,214.46,56.28392233]
[1757335380500,0.02040378,214.47,214.46,56.96392233]
[1757335380897,0.02040378,214.47,214.46,56.28392233]
[1757335381281,0.02040378,214.47,214.46,51.62104814]
[1757335381602,0.02040378,214.47,214.46,1.86545413]
[1757335381901,0.02040378,214.47,214.46,36.16]
[1757335382698,0.02040378,214.47,214.46,40.82287419]
[1757335382947,0.02040378,214.47,214.46,41.50287419]
[1757335383303,0.02040378,214.47,214.46,40.82287419]
[1757335385926,0.02040378,214.47,214.46,41.49287419]
[1757335387345,0.02040378,214.47,214.46,41.52287419]
[1757335388132,0.02040378,214.47,214.46,55.1184682]
[1757335388715,0.02040378,214.47,214.46,54.4484682]
[1757335390735,0.02040378,214.47,214.46,55.1184682]
[1757335392233,0.02040378,214.47,214.46,56.98392232]
[1757335393728,0.02040378,214.47,214.46,56.31392232]
[1757335394408,0.02040378,214.47,214.46,56.98392232]
[1757335394828,0.02040378,214.47,214.46,56.31392232]
[1757335395022,0.02040378,214.47,214.46,56.98392232]
[1757335400540,0.02040378,214.47,214.46,57.43020973]
[1757335402231,0.02040378,214.47,214.46,21.29020973]
[1757335402535,0.02040378,214.47,214.46,57.41020973]
[1757335402744,0.02040378,214.47,214.46,21.29020973]
[1757335402932,0.02040378,214.47,214.46,56.94392232]
[1757335405445,0.02040378,214.47,214.46,20.82392232]
[1757335405645,0.02040378,214.47,214.46,56.94392232]
[1757335408046,0.02040378,214.47,214.46,20.82392232]
[1757335408247,0.02040378,214.47,214.46,56.94392232]
[1757335410744,0.02040378,214.47,214.46,60.70849338]
[1757335412750,0.02040378,214.47,214.46,56.92392232]
[1757335414749,0.02040378,214.47,214.46,60.61597097]
[1757335415448,0.06,214.48,214.47,13.59559401]
[1757335415652,0.06,214.48,214.47,14.29559401]
[1757335416769,0.06,214.48,214.47,21.32318307]
[1757335418338,0.06,214.51,214.47,21.32318307]
[1757335418339,0.06,214.51,214.5,13.59559401]
[1757335418546,0.68,214.57,214.51,13.59559401]
[1757335418744,0.68,214.57,214.51,14.29559401]
[1757335419145,0.68,214.57,214.51,18.95501864]
[1757335419451,0.68,214.59,214.51,18.95501864]
[1757335419757,0.68,214.59,214.58,26.0]
[1757335419963,0.68,214.59,214.58,39.59559401]
[1757335420249,0.68,214.59,214.58,75.69559401]
[1757335420438,0.68,214.59,214.58,87.34204477]
[1757335420634,0.68,214.59,214.58,51.24204477]
[1757335420947,0.68,214.59,214.58,87.34204477]
[1757335421861,0.68,214.59,214.58,51.24204477]
[1757335422158,0.68,214.59,214.58,87.34204477]
[1757335422656,4.65874679,214.65,214.59,13.59559401]
[1757335422834,0.68,214.64,214.6,36.1]
[1757335423029,4.65874679,214.65,214.6,36.1]
[1757335423030,0.06,214.62,214.6,36.1]
[1757335423234,0.68,214.61,214.6,49.69559401]
[1757335423430,0.68,214.61,214.6,50.08177708]
[1757335423635,0.68,214.61,214.6,13.98177708]
[1757335423941,0.68,214.61,214.6,50.06177708]
[1757335424241,0.68,214.61,214.6,36.08]
[1757335424656,5.33961511,214.61,214.6,36.08]
[1757335424843,79.6,214.6,214.58,3.87388989]
[1757335425042,79.6,214.6,214.59,36.08]
[1757335425552,80.28,214.6,214.59,36.08]
[1757335427460,80.28,214.6,214.56,26.0]
[1757335427461,84.93983224,214.6,214.56,26.0]
[1757335427760,0.68,214.59,214.57,36.08]
[1757335427960,0.68,214.58,214.57,36.08]
[1757335428944,0.68,214.58,214.57,26.0]
[1757335429142,0.68,214.58,214.57,62.08]
[1757335429568,0.68,214.58,214.57,26.0]
[1757335429760,0.68,214.58,214.57,62.08]
[1757335429963,0.68,214.58,214.57,26.0]
[1757335430148,0.68,214.58,214.57,62.08]
[1757335430356,4.66013945,214.59,214.57,62.08]
[1757335430848,4.66013945,214.59,214.57,26.0]
[1757335431256,4.66013945,214.59,214.58,36.08]
[1757335432647,4.66013945,214.59,214.57,26.0]
[1757335432859,8.53402934,214.59,214.56,26.0]
[1757335433150,8.53402934,214.59,214.57,36.08]
[1757335433349,4.66013945,214.59,214.57,36.08]
[1757335434249,84.25986111,214.6,214.57,36.08]
[1757335436077,79.6,214.59,214.57,36.08]
[1757335441876,79.6,214.58,214.57,36.08]
[1757335443976,4.71989765,214.6,214.56,26.0]
[1757335444162,4.71989765,214.6,214.57,36.06]
[1757335445363,4.71989765,214.6,214.58,36.06]
[1757335445664,0.77,214.6,214.58,36.06]
[1757335446270,0.06,214.6,214.58,36.06]
[1757335446474,0.06,214.6,214.58,36.74]
[1757335447355,0.06,214.6,214.59,0.68]
[1757335447776,0.06,214.6,214.59,2.54441073]
[1757335449464,0.06,214.6,214.59,7.20446012]
[1757335449782,0.06,214.6,214.59,2.54441073]
[1757335452283,0.06,214.6,214.59,38.60441073]
[1757335455583,0.06,214.6,214.59,28.54441073]
[1757335455790,0.06,214.6,214.59,64.58441073]
[1757335456798,0.06,214.6,214.59,38.58441073]
[1757335457391,0.06,214.6,214.59,2.54441073]
[1757335457588,0.06,214.6,214.59,38.58441073]
[1757335458307,0.06,214.6,214.59,52.18000474]
[1757335458484,0.06,214.6,214.59,82.84005413]
[1757335458688,0.0104039,214.6,214.59,82.84005413]
[1757335458905,0.0104039,214.6,214.59,78.18000474]
[1757335459515,0.0104039,214.6,214.59,42.14000474]
[1757335459684,0.0104039,214.6,214.59,78.18000474]
[1757335460779,0.0104039,214.6,214.59,42.14000474]
[1757335460993,0.0104039,214.6,214.59,78.18000474]
[1757335462289,0.0104039,214.6,214.59,42.14000474]
[1757335462706,0.0104039,214.6,214.59,78.18000474]
[1757335465920,0.0104039,214.6,214.59,42.14000474]
[1757335466224,0.0104039,214.6,214.59,78.16000474]
[1757335468232,0.0104039,214.6,214.59,42.14000474]
[1757335468443,0.0104039,214.6,214.59,78.16000474]
[1757335472030,0.06,214.62,214.61,26.0]
[1757335472231,0.06,214.62,214.61,62.02]
[1757335473042,0.06,214.62,214.61,64.56397632]
[1757335477352,0.06,214.62,214.61,28.54397632]
[1757335477527,0.06,214.62,214.61,64.56397632]
[1757335478931,0.06,214.62,214.61,65.06397632]
[1757335479736,0.06,214.62,214.61,64.38397632]
[1757335479932,0.06,214.62,214.61,65.05397632]
[1757335480643,0.06,214.62,214.61,64.38397632]
[1757335480851,0.06,214.62,214.61,28.36397632]
[1757335481050,0.06,214.62,214.61,64.36397632]
[1757335484334,0.06,214.62,214.61,65.03397632]
[1757335484848,0.01083815,214.62,214.61,78.62957033]
[1757335485053,0.01083815,214.62,214.61,83.28918544]
[1757335485422,0.01083815,214.62,214.61,78.62957033]
[1757335485628,0.01083815,214.62,214.61,42.62957033]
[1757335485948,0.01083815,214.62,214.61,78.62957033]
[1757335487641,0.01083815,214.62,214.61,42.62957033]
[1757335487827,0.01083815,214.62,214.61,78.62957033]
[1757335488752,0.01083815,214.62,214.61,42.62957033]
[1757335488943,0.01083815,214.62,214.61,78.62957033]
[1757335489253,0.01083815,214.62,214.61,42.62957033]
[1757335489551,0.01083815,214.62,214.61,78.62957033]
[1757335490151,0.01083815,214.62,214.61,42.62957033]
[1757335490354,0.01083815,214.62,214.61,78.62957033]
[1757335492347,0.01083815,214.62,214.61,42.62957033]
[1757335492552,0.01083815,214.62,214.61,77.93957033]
[1757335492727,0.01083815,214.62,214.61,78.60957033]
[1757335495056,0.01284719,214.63,214.61,78.60957033]
[1757335495547,0.01284719,214.63,214.62,0.67]
[1757335495753,0.01284719,214.63,214.62,2.53388947]
[1757335496948,0.01284719,214.63,214.62,16.12948348]
[1757335500756,0.01284719,214.63,214.62,20.78888148]
[1757335501867,0.01324161,214.64,214.63,57.38128004]
[1757335502363,0.01324161,214.64,214.63,21.40128004]
[1757335502659,0.01324161,214.64,214.63,57.38128004]
[1757335502861,0.01324161,214.64,214.63,77.38128004]
[1757335504665,0.66,214.73,214.7,26.0]
[1757335504964,79.6,214.74,214.71,35.96]
[1757335505165,0.66,214.72,214.71,35.96]
[1757335505342,0.66,214.72,214.71,49.93396185]
[1757335505658,0.72,214.72,214.71,13.97396185]
[1757335505861,0.72,214.72,214.71,35.96]
[1757335506061,3.19650512,214.72,214.66,13.97786837]
[1757335506248,2.47650512,214.68,214.67,35.96]
[1757335506568,3.19650512,214.68,214.67,35.96]
[1757335507366,0.72,214.68,214.67,35.96]
[1757335508949,4.65768615,214.7,214.64,14.67917104]
[1757335509144,4.65768615,214.7,214.65,35.96]
[1757335509348,0.72,214.69,214.66,35.96]
[1757335509550,2.47650512,214.71,214.66,35.96]
[1757335509750,0.72,214.68,214.66,35.96]
[1757335509971,0.72,214.67,214.66,35.96]
[1757335510642,0.72,214.67,214.64,13.97917104]
[1757335510849,0.72,214.66,214.65,35.96]
[1757335511055,0.72,214.66,214.64,13.97917104]
[1757335511256,3.8674007,214.67,214.65,35.96]
[1757335511552,8.52572962,214.67,214.65,35.96]
[1757335511749,0.72,214.67,214.65,35.96]
[1757335512349,0.72,214.67,214.64,13.97917104]
[1757335512551,0.72,214.67,214.65,35.96]
[1757335513273,4.5874007,214.69,214.65,47.60409247]
[1757335513447,0.72,214.68,214.65,47.60409247]
[1757335513659,0.72,214.68,214.65,35.96]
[1757335514282,4.65701113,214.73,214.65,35.96]
[1757335514474,4.65680005,214.74,214.66,0.7]
[1757335514661,4.5874007,214.73,214.67,35.96]
[1757335514974,4.5874007,214.72,214.67,35.96]
[1757335515166,0.72,214.71,214.67,35.96]
[1757335516452,4.65750838,214.71,214.67,11.64102103]
[1757335516767,4.5874007,214.7,214.68,35.96]
[1757335516971,0.72,214.69,214.68,35.96]
[1757335517159,4.5874007,214.69,214.68,35.96]
[1757335518178,9.2452795,214.69,214.68,35.96]
[1757335520182,9.3052795,214.69,214.68,35.96]
[1757335520677,34.54557051,214.69,214.68,35.94]
[1757335522678,34.54557051,214.69,214.63,0.03]
[1757335522679,34.54557051,214.69,214.67,35.94]
[1757335522860,4.5874007,214.68,214.67,35.94]
[1757335524576,9.24549647,214.68,214.67,35.94]
[1757335526674,8.52549647,214.68,214.67,35.94]
[1757335526877,9.24549647,214.68,214.67,35.94]
[1757335528084,9.24549647,214.68,214.63,0.03]
[1757335528085,13.59559401,214.67,214.63,0.03]
[1757335528284,47.33039541,214.64,214.61,0.03]
[1757335528585,13.59559401,214.62,214.61,0.03]
[1757335528779,21.33039541,214.62,214.61,0.03]
[1757335528969,25.98979341,214.62,214.61,0.03]
[1757335529168,26.70979341,214.62,214.61,0.03]
[1757335529554,13.59559401,214.61,214.58,0.03]
[1757335529771,17.46299471,214.59,214.58,0.03]
[1757335530276,18.18299471,214.59,214.58,0.03]
[1757335530479,32.17194344,214.59,214.58,0.03]
[1757335530777,36.83199283,214.59,214.58,0.03]
[1757335531566,18.64899812,214.59,214.58,0.03]
[1757335531762,8.52745009,214.59,214.58,35.97]
[1757335532085,8.52745009,214.59,214.58,36.67]
[1757335532682,8.52745009,214.59,214.58,35.97]
[1757335533278,8.52745009,214.59,214.58,0.03]
[1757335533585,3.8674007,214.59,214.58,36.67]
[1757335533887,3.8674007,214.59,214.58,35.97]
[1757335536389,8.52745009,214.59,214.58,35.99]
[1757335537887,8.52745009,214.59,214.58,0.03]
[1757335538062,8.52745009,214.59,214.58,35.99]
[1757335538765,4.66004939,214.59,214.58,35.99]
[1757335538966,8.52745009,214.59,214.58,35.99]
[1757335539281,8.52745009,214.59,214.58,36.71]
[1757335539482,8.52745009,214.59,214.58,35.99]
[1757335540091,8.52745009,214.59,214.58,36.71]
[1757335540481,132.4,214.63,214.58,36.71]
[1757335540681,3.8674007,214.59,214.58,35.99]
[1757335541291,3.8674007,214.59,214.58,36.71]
[1757335542683,8.52745009,214.59,214.58,36.71]
[1757335542883,8.52745009,214.59,214.58,36.69]
[1757335543393,8.52745009,214.59,214.58,0.03]
[1757335543598,8.52745009,214.59,214.58,35.97]
[1757335543795,8.52745009,214.59,214.58,0.03]
[1757335543970,8.52745009,214.59,214.58,35.97]
[1757335544790,8.52745009,214.59,214.58,0.03]
[1757335544972,22.8430441,214.59,214.58,0.03]
[1757335545173,22.8430441,214.59,214.58,35.97]
[1757335545581,22.1230441,214.59,214.58,35.97]
[1757335552700,22.8430441,214.59,214.58,35.97]
[1757335552915,22.1230441,214.59,214.58,0.03]
[1757335557514,22.1230441,214.59,214.58,35.97]
[1757335557807,43.6,214.57,214.56,0.72]
[1757335557999,47.4674007,214.57,214.55,24.46662741]
[1757335558308,3.8674007,214.56,214.55,24.46662741]
[1757335558511,3.8674007,214.56,214.55,60.40662741]
[1757335559093,8.52810166,214.56,214.55,61.12662741]
[1757335560102,8.52810166,214.56,214.55,25.18662741]
[1757335560312,8.52810166,214.56,214.55,24.46662741]
[1757335560515,8.52810166,214.56,214.55,60.40662741]
[1757335560691,8.52810166,214.56,214.55,24.46662741]
[1757335562422,8.52810166,214.56,214.55,25.18662741]
[1757335568220,8.52810166,214.56,214.55,60.40662741]
[1757335570123,8.52810166,214.56,214.55,61.07662741]
[1757335571201,3.8674007,214.56,214.55,61.07662741]
[1757335571695,137.06028565,214.58,214.55,61.07662741]
[1757335571896,3.9274007,214.6,214.56,0.67]
[1757335572118,3.9274007,214.6,214.57,35.94]
[1757335572316,3.9274007,214.6,214.58,0.67]
[1757335572501,3.9274007,214.6,214.59,35.94]
[1757335572703,3.9274007,214.6,214.59,36.61]
[1757335572916,2.53712581,214.6,214.59,36.61]
[1757335573222,0.06,214.6,214.59,36.61]
[1757335577010,0.06,214.6,214.59,38.47397633]
[1757335577724,0.01128294,214.6,214.59,43.13402572]
[1757335578914,0.01128294,214.6,214.59,56.72961973]
[1757335581012,0.01128294,214.6,214.59,43.13402572]
[1757335581213,0.06,214.63,214.62,26.0]
[1757335581417,0.06,214.63,214.62,61.92]
[1757335581628,0.06,214.63,214.62,62.59]
[1757335582431,0.06,214.63,214.62,76.18559401]
[1757335583124,0.06,214.63,214.62,76.65153381]
[1757335583323,0.06,214.63,214.62,81.31093181]
[1757335583623,0.06,214.63,214.62,45.39093181]
[1757335583815,0.06,214.63,214.62,81.31093181]
[1757335584119,0.06,214.63,214.62,33.65853272]
[1757335584342,0.06,214.63,214.62,33.19259292]
[1757335584631,0.06,214.63,214.62,38.45319492]
[1757335584834,0.06,214.63,214.62,2.53319492]
[1757335585134,0.06,214.63,214.62,36.57]
[1757335585301,0.06,214.63,214.62,62.57]
[1757335585506,0.06,214.63,214.62,26.67]
[1757335585719,0.06,214.63,214.62,0.67]
[1757335586042,0.06,214.63,214.62,61.9]
[1757335586417,0.06,214.63,214.62,62.57]
[1757335586938,0.06,214.63,214.62,26.0]
[1757335587135,0.06,214.63,214.62,62.57]
[1757335587314,0.06,214.63,214.62,26.67]
[1757335587521,0.06,214.63,214.62,62.57]
[1757335589024,0.06,214.63,214.62,26.0]
[1757335589230,0.06,214.63,214.61,24.9297955]
[1757335589625,0.06,214.63,214.62,35.9]
[1757335590036,0.06,214.63,214.62,36.57]
[1757335590233,0.06,214.63,214.62,35.9]
[1757335592641,0.06,214.63,214.62,36.57]
[1757335592849,0.06,214.63,214.62,35.9]
[1757335593022,0.06,214.63,214.62,36.57]
[1757335593526,0.06,214.63,214.62,39.76712581]
[1757335594132,0.06,214.63,214.62,44.42652381]
[1757335594735,0.01135621,214.63,214.62,44.42652381]
[1757335595136,0.01135621,214.63,214.62,58.02211782]
[1757335595333,0.06,214.65,214.63,33.59559401]
[1757335595528,0.06,214.65,214.64,35.9]
[1757335595845,0.06,214.68,214.67,26.0]
[1757335596050,0.06,214.68,214.67,30.65831275]
[1757335596252,0.06,214.68,214.67,67.25831275]
[1757335596739,0.06,214.68,214.67,31.35831275]
[1757335597140,0.06,214.68,214.67,67.25831275]
[1757335597334,0.06,214.68,214.67,31.35831275]
[1757335597539,0.06,214.68,214.67,36.6]
[1757335597848,0.06,214.68,214.67,0.7]
[1757335598035,0.06,214.68,214.65,26.7]
[1757335598235,0.06,214.68,214.66,35.9]
[1757335598430,0.06,214.68,214.67,35.9]
[1757335599045,0.06,214.68,214.66,0.7]
[1757335599348,0.06,214.68,214.67,35.9]
[1757335599555,0.06,214.68,214.67,61.9]
[1757335600143,0.06,214.68,214.67,36.6]
[1757335600541,0.06,214.68,214.67,41.25831275]
[1757335603559,0.06,214.68,214.67,43.12142088]
[1757335608848,0.06,214.68,214.67,33.22142088]
[1757335609050,0.06,214.68,214.67,1.86310813]
[1757335609256,0.06,214.68,214.67,37.74310813]
[1757335609456,0.06,214.68,214.67,42.40142088]
[1757335609763,0.06,214.68,214.67,37.74310813]
[1757335610065,0.06,214.68,214.67,63.74310813]
[1757335611252,0.06,214.68,214.67,68.40142088]
[1757335612259,0.06,214.68,214.67,1.86310813]
[1757335612456,0.06,214.68,214.67,63.74310813]
[1757335612970,0.72,214.68,214.67,1.86310813]
[1757335613264,0.06,214.68,214.67,35.88]
[1757335613976,0.72,214.68,214.67,35.88]
[1757335614178,0.06,214.68,214.67,35.88]
[1757335615653,0.06,214.68,214.67,41.23831275]
[1757335616154,0.06,214.68,214.67,26.0]
[1757335616473,0.01120644,214.68,214.67,82.58]
[1757335616775,0.01120644,214.68,214.67,96.17559401]
[1757335616960,0.01120644,214.68,214.67,76.17559401]
[1757335617156,0.01120644,214.68,214.67,96.17559401]
[1757335617357,0.01120644,214.68,214.67,78.03835509]
[1757335617569,0.01120644,214.68,214.67,98.03835509]
[1757335617756,0.01120644,214.68,214.67,122.39548794]
[1757335618075,0.01120644,214.68,214.67,102.69666784]
[1757335619458,0.01120644,214.68,214.67,82.69666784]
[1757335619777,0.01120644,214.68,214.67,69.10107383]
[1757335620777,0.01120644,214.68,214.67,33.22107383]
[1757335620957,0.01120644,214.68,214.67,69.10107383]
[1757335621159,0.01120644,214.68,214.67,91.2448207]
[1757335622163,0.01120644,214.68,214.67,28.6648207]
[1757335622363,0.01120644,214.68,214.67,64.5448207]
[1757335622573,0.01120644,214.68,214.67,24.00650795]
[1757335622574,0.67120644,214.68,214.67,24.00650795]
[1757335622775,0.67120644,214.68,214.67,58.02374687]
[1757335622984,0.67120644,214.68,214.67,22.14374687]
[1757335623186,0.67120644,214.68,214.67,58.02374687]
[1757335623782,0.67120644,214.68,214.67,84.02374687]
[1757335624496,0.67120644,214.68,214.67,58.02374687]
[1757335624798,0.67120644,214.68,214.67,22.14374687]
[1757335625092,0.67120644,214.68,214.67,58.02374687]
[1757335625871,0.67120644,214.68,214.67,22.14374687]
[1757335626175,0.67120644,214.68,214.67,58.02374687]
[1757335626690,0.67120644,214.68,214.67,22.14374687]
[1757335626995,0.67120644,214.68,214.67,58.02374687]
[1757335627999,0.67120644,214.68,214.67,22.14374687]
[1757335628298,0.01120644,214.68,214.67,58.70374687]
[1757335628468,0.01332088,214.69,214.67,63.36205962]
[1757335628665,0.01332088,214.69,214.68,0.68]
[1757335629004,0.01332088,214.69,214.68,5.33809577]
[1757335630174,0.01332088,214.69,214.68,27.48081116]
[1757335630592,0.06,214.72,214.71,26.0]
[1757335630773,0.06,214.72,214.71,61.9]
[1757335630979,0.06,214.72,214.71,67.23744492]
[1757335631673,0.67,214.83,214.71,102.16828185]
[1757335631894,0.67,214.83,214.75,26.0]
[1757335632075,0.67,214.83,214.76,61.94]
[1757335632276,0.67,214.83,214.8,26.0]
[1757335632471,0.67,214.83,214.81,35.94]
[1757335633278,4.65355099,214.89,214.84,26.0]
[1757335633279,13.59559401,214.88,214.84,26.0]
[1757335633495,13.59559401,214.88,214.85,35.94]
[1757335633789,0.67,214.87,214.85,35.94]
[1757335634291,0.67,214.86,214.8,26.0]
[1757335634470,13.59559401,214.88,214.78,0.68]
[1757335634471,0.67,214.85,214.84,26.0]
[1757335634676,0.67,214.85,214.84,61.94]
[1757335635876,0.67,214.85,214.81,26.0]
[1757335636079,0.67,214.85,214.84,26.0]
[1757335636385,0.67,214.85,214.84,61.92]
[1757335636590,13.59559401,214.88,214.84,61.92]
[1757335636777,0.67,214.87,214.84,61.92]
[1757335637089,67.47,214.89,214.84,61.92]
[1757335637287,0.67,214.88,214.82,0.68]
[1757335637667,0.67,214.88,214.83,35.92]
[1757335637873,0.67,214.87,214.83,35.92]
[1757335638582,0.67,214.86,214.81,21.60629333]
[1757335638780,0.67,214.85,214.84,26.0]
[1757335638999,0.67,214.85,214.84,35.94]
[1757335639294,4.53033735,214.85,214.81,21.60629333]
[1757335639500,3.86033735,214.83,214.82,35.96]
[1757335639803,4.53033735,214.83,214.82,35.96]
[1757335640886,0.67,214.83,214.82,35.96]
[1757335643492,0.67,214.83,214.81,21.60629333]
[1757335643991,0.67,214.82,214.81,21.60629333]
[1757335644838,18.12593136,214.82,214.81,21.60629333]
[1757335645188,18.12593136,214.82,214.81,48.90629333]
[1757335645697,22.78099141,214.82,214.81,48.90629333]
[1757335645897,22.78099141,214.82,214.81,21.60629333]
[1757335646602,13.59559401,214.81,214.79,25.1]
[1757335646809,18.12593136,214.8,214.79,25.1]
[1757335646993,18.12593136,214.8,214.69,0.68]
[1757335647193,3.86033735,214.75,214.7,35.96]
[1757335647501,3.86033735,214.75,214.7,36.64]
[1757335647686,9.18702328,214.75,214.7,0.68]
[1757335647894,9.18702328,214.75,214.71,35.98]
[1757335648091,5.32668593,214.75,214.71,35.98]
[1757335648317,9.18702328,214.75,214.71,35.98]
[1757335648616,3.86033735,214.72,214.68,0.52333832]
[1757335648803,3.86033735,214.71,214.69,35.96]
[1757335649005,3.86033735,214.72,214.69,35.96]
[1757335649210,4.53033735,214.72,214.7,35.96]
[1757335649737,8.51783748,214.71,214.68,0.52333832]
[1757335649898,9.18783748,214.71,214.69,35.96]
[1757335650613,4.53033735,214.7,214.68,0.52333832]
[1757335650816,3.86033735,214.69,214.68,0.52333832]